fUSD/lending_fUSD_20240121
["ID","MTS","AMOUNT","RATE_DAILY","PERIOD"]
[312414440,1705863099796,-500.0,0.00042739,31]
[312414441,1705863099805,-500.0,0.00042739,31]
[312414442,1705863099814,-500.0,0.00042739,31]
[312414443,1705863099824,-1374.73,0.00042739,31]
[312414444,1705863099834,-1208.34,0.00042739,31]
[312414445,1705863099843,-1371.39,0.00042739,31]
[312414446,1705863099853,-820.18,0.00042739,31]
[312414447,1705863099862,-1442.91,0.00042739,31]
[312414448,1705863099871,-706.05,0.00042739,31]
[312414449,1705863099881,-500.0,0.00042739,31]
[312414450,1705863099890,-500.0,0.00042739,31]
[312414451,1705863099899,-669.79,0.00042739,31]
[312414452,1705863099908,-875.23,0.00042739,31]
[312414453,1705863099917,-500.0,0.00042739,31]
[312414454,1705863099926,-500.0,0.00042739,31]
[312414455,1705863099936,-2613.26,0.00042739,7]
[312414456,1705863099945,-2071.44,0.00042739,31]
[312414457,1705863099954,-901.63,0.00042739,31]
[312414458,1705863099964,-502.66307812,0.00042739,31]
[312414459,1705863099972,-500.0,0.00042739,31]
[312414460,1705863099981,-2191.06,0.00042739,7]
[312414461,1705863099990,-500.0,0.00042739,31]
[312414462,1705863099999,-500.0,0.00042739,31]
[312414463,1705863100009,-192.27,0.00042739,31]
[312414464,1705863100018,-500.0,0.00042739,31]
[312414465,1705863100028,-500.0,0.00042739,31]
[312414466,1705863100038,-641.54,0.00042739,31]
[312414467,1705863100047,-523.65299122,0.00042739,31]
[312414468,1705863100056,-1346.51,0.00042739,31]
[312414469,1705863100066,-1341.6,0.00042739,2]
[312414470,1705863100076,-500.0,0.00042739,31]
[312414471,1705863100085,-500.0,0.00042739,31]
[312414472,1705863100095,-500.0,0.00042739,31]
[312414473,1705863100104,-500.0,0.00042739,31]
[312414474,1705863100113,-500.0,0.00042739,31]
[312414475,1705863100122,-500.0,0.00042739,31]
[312414476,1705863100131,-504.02,0.00042739,31]
[312414477,1705863100141,-504.43,0.00042739,31]
[312414478,1705863100150,-588.19,0.00042739,31]
[312414479,1705863100160,-787.71,0.00042739,31]
[312414480,1705863100170,-500.0,0.00042739,31]
[312414481,1705863100179,-500.0,0.00042739,31]
[312414482,1705863100188,-500.0,0.00042739,31]
[312414483,1705863100198,-659.24,0.00042739,31]
[312414484,1705863100207,-500.0,0.00042739,31]
[312414485,1705863100217,-193.31875197,0.00042739,31]
[312414486,1705863100226,-646.69,0.00042739,31]
[312414487,1705863100236,-653.73,0.00042739,31]
[312414488,1705863100245,-500.0,0.00042739,31]
[312414489,1705863100255,-1246.47,0.00042739,31]
[312414490,1705863100265,-970.62,0.00042739,31]
[312414491,1705863100275,-1282.6,0.00042739,31]
[312414492,1705863100285,-649.51341262,0.00042739,31]
[312414493,1705863100295,-500.0,0.00042739,31]
[312414494,1705863100304,-1439.07,0.00042739,31]
[312414495,1705863100315,-500.0,0.00042739,31]
[312414496,1705863100324,-884.92,0.00042739,31]
[312414497,1705863100334,-507.76620013,0.00042739,31]
[312414498,1705863100345,-500.0,0.00042739,31]
[312414499,1705863100355,-601.71,0.00042739,31]
[312414500,1705863100366,-631.29,0.00042739,31]
[312414501,1705863100376,-500.0,0.00042739,31]
[312414502,1705863100385,-658.35,0.00042739,31]
[312414503,1705863100395,-1363.05,0.00042739,31]
[312414504,1705863100405,-500.0,0.00042739,31]
[312414505,1705863100414,-522.61441415,0.00042739,31]
[312414506,1705863100424,-500.0,0.00042739,31]
[312414507,1705863100433,-1376.75,0.00042739,31]
[312414508,1705863100444,-734.65,0.00042739,31]
[312414509,1705863100454,-629.5,0.00042739,31]
[312414510,1705863100464,-878.27,0.00042739,31]
[312414511,1705863100473,-1485.3,0.00042739,31]
[312414512,1705863100482,-500.0,0.00042739,31]
[312414513,1705863100492,-500.0,0.00042739,31]
[312414514,1705863100502,-500.0,0.00042739,31]
[312414515,1705863100511,-500.0,0.00042739,31]
[312414516,1705863100521,-500.0,0.00042739,31]
[312414517,1705863100531,-269.58,0.00042739,31]
[312414518,1705863100541,-500.0,0.00042739,31]
[312414519,1705863100551,-1460.98,0.00042739,31]
[312414520,1705863100561,-795.53,0.00042739,31]
[312414521,1705863100571,-500.0,0.00042739,31]
[312414522,1705863100581,-500.0,0.00042739,31]
[312414523,1705863100590,-582.97,0.00042739,31]
[312414524,1705863100601,-500.0,0.00042739,31]
[312414525,1705863100611,-1823.96,0.00042739,31]
[312414526,1705863100621,-500.0,0.00042739,31]
[312414527,1705863100631,-500.0,0.00042739,31]
[312414528,1705863100641,-1800.49,0.00042739,31]
[312414529,1705863100651,-500.0,0.00042739,31]
[312414530,1705863100664,-750.82,0.00042739,31]
[312414531,1705863100674,-752.24,0.00042739,31]
[312414532,1705863100683,-500.0,0.00042739,31]
[312414533,1705863100693,-506.8174161,0.00042739,31]
[312414534,1705863100703,-500.0,0.00042739,31]
[312414535,1705863100713,-1200.05,0.00042739,31]
[312414536,1705863100723,-500.0,0.00042739,31]
[312414537,1705863100732,-1143.39,0.00042739,31]
[312414538,1705863100742,-798.25,0.00042739,31]
[312414539,1705863100752,-795.6,0.00042739,31]
[312414540,1705863100761,-500.0,0.00042739,31]
[312414541,1705863100771,-500.0,0.00042739,31]
[312414542,1705863100780,-834.82,0.00042739,31]
[312414543,1705863100790,-500.0,0.00042739,31]
[312414544,1705863100800,-687.25,0.00042739,31]
[312414545,1705863100809,-500.0,0.00042739,31]
[312414546,1705863100819,-500.0,0.00042739,31]
[312414547,1705863100829,-625.95,0.00042739,31]
[312414548,1705863100838,-278.81044962,0.00042739,31]
[312414549,1705863100848,-500.0,0.00042739,31]
[312414550,1705863100858,-5545.7,0.00042739,31]
[312414551,1705863100867,-654.82,0.00042739,31]
[312414552,1705863100877,-500.0,0.00042739,31]
[312414553,1705863100886,-500.0,0.00042739,31]
[312414554,1705863100896,-627.52,0.00042739,31]
[312414555,1705863100905,-500.0,0.00042739,31]
[312414556,1705863100915,-500.0,0.00042739,31]
[312414557,1705863100924,-730.39,0.00042739,31]
[312414558,1705863100934,-500.0,0.00042739,31]
[312414559,1705863100944,-500.0,0.00042739,31]
[312414560,1705863100953,-3338.13,0.00042739,31]
[312414561,1705863100964,-519.15670939,0.00042739,31]
[312414562,1705863100973,-500.0,0.00042739,31]
[312414563,1705863100983,-545.27,0.00042739,31]
[312414564,1705863100992,-764.44,0.00042739,31]
[312414565,1705863101002,-500.0,0.00042739,31]
[312414566,1705863101012,-1998.81,0.00042739,31]
[312414567,1705863101022,-1296.18,0.00042739,31]
[312414568,1705863101031,-541.91377113,0.00042739,31]
[312414569,1705863101040,-17260.95,0.00042739,31]
[312414570,1705863101049,-1596.09,0.00042739,31]
[312414571,1705863101060,-708.09,0.00042739,31]
[312414572,1705863101069,-898.19,0.00042739,31]
[312414573,1705863101079,-500.0,0.00042739,31]
[312414574,1705863101088,-570.27,0.00042739,31]
[312414575,1705863101097,-5449.29,0.00042739,31]
[312414576,1705863101106,-2144.35,0.00042739,31]
[312414577,1705863101116,-500.0,0.00042739,31]
[312414578,1705863101125,-500.0,0.00042739,31]
[312414579,1705863101135,-500.0,0.00042739,31]
[312414580,1705863101145,-500.0,0.00042739,31]
[312414581,1705863101155,-602.09,0.00042739,31]
[312414582,1705863101164,-501.79,0.00042739,31]
[312414583,1705863101174,-500.0,0.00042739,31]
[312414584,1705863101185,-500.0,0.00042739,31]
[312414585,1705863101194,-2566.96,0.00042739,31]
[312414586,1705863101204,-754.18,0.00042739,31]
[312414587,1705863101214,-1568.48,0.00042739,31]
[312414588,1705863101224,-1393.43,0.00042739,31]
[312414589,1705863101233,-14027.91,0.00042739,31]
[312414590,1705863101243,-500.0,0.00042739,31]
[312414591,1705863101253,-927.78,0.00042739,31]
[312414592,1705863101263,-500.0,0.00042739,31]
[312414593,1705863101273,-500.0,0.00042739,31]
[312414594,1705863101283,-500.0,0.00042739,31]
[312414595,1705863101293,-1492.21,0.00042739,31]
[312414596,1705863101303,-20533.6,0.00042739,31]
[312414597,1705863101314,-866.78,0.00042739,31]
[312414598,1705863101324,-872.52,0.00042739,31]
[312414599,1705863101334,-1000.0,0.00042739,31]
[312414600,1705863101344,-2714.75,0.00042739,31]
[312414601,1705863101353,-500.0,0.00042739,31]
[312414602,1705863101363,-2856.96,0.00042739,31]
[312414603,1705863101373,-500.0,0.00042739,31]
[312414604,1705863101382,-500.0,0.00042739,31]
[312414605,1705863101392,-500.0,0.00042739,31]
[312414606,1705863101403,-500.0,0.00042739,31]
[312414607,1705863101413,-500.0,0.00042739,31]
[312414608,1705863101423,-585.59,0.00042739,31]
[312414609,1705863101433,-618.09,0.00042739,31]
[312414610,1705863101444,-500.0,0.00042739,31]
[312414611,1705863101453,-838.89,0.00042739,31]
[312414612,1705863101463,-38187.45,0.00042739,31]
[312414613,1705863101473,-500.0,0.00042739,31]
[312414614,1705863101482,-1815.38,0.00042739,31]
[312414615,1705863101492,-310.98694897,0.00042739,31]
[312414616,1705863101502,-3481.81,0.00042739,31]
[312414617,1705863101512,-506.98,0.00042739,31]
[312414618,1705863101521,-5257.49,0.00042739,31]
[312414619,1705863101531,-500.0,0.00042739,31]
[312414620,1705863101540,-500.0,0.00042739,31]
[312414621,1705863101550,-500.0,0.00042739,31]
[312414622,1705863101559,-500.0,0.00042739,31]
[312414623,1705863101569,-500.0,0.00042739,10]
[312414624,1705863101579,-522.8,0.00042739,31]
[312414625,1705863101589,-2462.22,0.00042739,31]
[312414626,1705863101599,-500.0,0.00042739,31]
[312414627,1705863101609,-2726.66,0.00042739,31]
[312414628,1705863101620,-500.0,0.00042739,31]
[312414629,1705863101630,-500.0,0.00042739,31]
[312414630,1705863101640,-500.0,0.00042739,31]
[312414631,1705863101651,-500.0,0.00042739,31]
[312414632,1705863101664,-500.0,0.00042739,31]
[312414633,1705863101673,-9964.37,0.00042739,31]
[312414634,1705863101684,-4646.58,0.00042739,31]
[312414635,1705863101695,-1256.11,0.00042739,31]
[312414636,1705863101706,-569.32,0.00042739,31]
[312414637,1705863101716,-563.04,0.00042739,31]
[312414638,1705863101726,-1625.17,0.00042739,31]
[312414639,1705863101736,-1597.74,0.00042739,31]
[312414640,1705863101747,-500.0,0.00042739,31]
[312414641,1705863101759,-1521.04,0.00042739,31]
[312414642,1705863101771,-945.78,0.00042739,31]
[312414643,1705863101782,-544.69,0.00042739,31]
[312414644,1705863101793,-1325.95,0.00042739,31]
[312414645,1705863101804,-556.31340506,0.00042739,31]
[312414646,1705863101816,-1638.27,0.00042739,31]
[312414647,1705863101826,-722.86,0.00042739,31]
[312414648,1705863101837,-2479.49,0.00042739,31]
[312414649,1705863101847,-2862.9,0.00042739,31]
[312414650,1705863101857,-781.61,0.00042739,31]
[312414651,1705863101867,-1020.59,0.00042739,31]
[312414652,1705863101877,-500.0,0.00042739,31]
[312414653,1705863101887,-500.0,0.00042739,31]
[312414654,1705863101898,-500.0,0.00042739,31]
[312414655,1705863101908,-13684.18,0.00042739,31]
[312414656,1705863101918,-500.0,0.00042739,31]
[312414657,1705863101928,-688.84,0.00042739,31]
[312414658,1705863101938,-1661.63,0.00042739,31]
[312414659,1705863101949,-500.0,0.00042739,31]
[312414660,1705863101959,-4867.58,0.00042739,31]
[312414661,1705863101970,-2128.7,0.00042739,31]
[312414662,1705863101980,-2953.84,0.00042739,31]
[312414663,1705863101991,-500.0,0.00042739,31]
[312414664,1705863102001,-500.0,0.00042739,31]
[312414665,1705863102012,-500.0,0.00042739,31]
[312414666,1705863102022,-500.0,0.00042739,31]
[312414667,1705863102031,-3193.31,0.00042739,31]
[312414668,1705863102042,-687.4,0.00042739,31]
[312414669,1705863102052,-1215.74,0.00042739,31]
[312414670,1705863102063,-500.0,0.00042739,31]
[312414671,1705863102073,-3100.08,0.00042739,31]
[312414672,1705863102083,-500.0,0.00042739,31]
[312414673,1705863102093,-500.0,0.00042739,31]
[312414674,1705863102104,-500.0,0.00042739,31]
[312414675,1705863102114,-1445.08,0.00042739,31]
[312414676,1705863102124,-500.0,0.00042739,31]
[312414677,1705863102135,-4139.67,0.00042739,31]
[312414678,1705863102145,-598.34,0.00042739,31]
[312414679,1705863102156,-916.15,0.00042739,31]
[312414680,1705863102166,-500.0,0.00042739,31]
[312414681,1705863102177,-500.0,0.00042739,31]
[312414682,1705863102187,-500.0,0.00042739,31]
[312414683,1705863102196,-710.29,0.00042739,31]
[312414684,1705863102207,-5676.64,0.00042739,31]
[312414685,1705863102217,-533.248508,0.00042739,31]
[312414686,1705863102228,-2001.23,0.00042739,31]
[312414687,1705863102237,-2149.06,0.00042739,31]
[312414688,1705863102247,-940.56,0.00042739,31]
[312414689,1705863102258,-500.0,0.00042739,31]
[312414690,1705863102268,-4833.56,0.00042739,31]
[312414691,1705863102278,-506.94,0.00042739,31]
[312414692,1705863102288,-970.56,0.00042739,31]
[312414693,1705863102298,-2423.36,0.00042739,31]
[312414694,1705863102308,-1219.52,0.00042739,31]
[312414695,1705863102318,-1862.24,0.00042739,31]
[312414696,1705863102328,-500.0,0.00042739,31]
[312414697,1705863102337,-500.0,0.00042739,31]
[312414698,1705863102347,-500.0,0.00042739,31]
[312414699,1705863102357,-1187.95,0.00042739,31]
[312414700,1705863102368,-500.0,0.00042739,31]
[312414701,1705863102378,-1829.93,0.00042739,31]
[312414702,1705863102388,-500.0,0.00042739,31]
[312414703,1705863102398,-578.39,0.00042739,31]
[312414704,1705863102409,-14384.99,0.00042739,31]
[312414705,1705863102645,-639.46,0.00042739,31]
[312414706,1705863102658,-1213.94,0.00042739,31]
[312414707,1705863102668,-709.99,0.00042739,31]
[312414708,1705863102678,-300.0,0.00042739,31]
[312414709,1705863102687,-625.46,0.00042739,31]
[312414710,1705863102697,-3268.88,0.00042739,31]
[312414711,1705863102706,-648.75,0.00042739,31]
[312414712,1705863102715,-975.48,0.00042739,31]
[312414713,1705863102724,-755.56,0.00042739,31]
[312414714,1705863102734,-500.0,0.00042739,31]
[312414715,1705863102744,-1678.3,0.00042739,31]
[312414716,1705863102754,-2329.16,0.00042739,31]
[312414717,1705863102764,-500.0,0.00042739,31]
[312414718,1705863102774,-558.66,0.00042739,31]
[312414719,1705863102783,-1401.81,0.00042739,31]
[312414720,1705863102793,-500.0,0.00042739,31]
[312414721,1705863102802,-1639.58,0.00042739,31]
[312414722,1705863102811,-894.48,0.00042739,31]
[312414723,1705863102820,-687.4,0.00042739,31]
[312414724,1705863102830,-1615.83,0.00042739,31]
[312414725,1705863102840,-1087.01,0.00042739,31]
[312414726,1705863102849,-500.0,0.00042739,31]
[312414727,1705863102859,-1031.2,0.00042739,31]
[312414728,1705863102869,-531.01,0.00042739,31]
[312414729,1705863102878,-2511.72,0.00042739,31]
[312414730,1705863102888,-1748.22,0.00042739,31]
[312414731,1705863102897,-4456.07,0.00042739,31]
[312414732,1705863102906,-500.0,0.00042739,31]
[312414733,1705863102915,-500.0,0.00042739,31]
[312414734,1705863102924,-500.0,0.00042739,31]
[312414735,1705863102934,-988.49175806,0.00042739,14]
[312414736,1705863102943,-3850.98,0.00042739,31]
[312414737,1705863102952,-579.06,0.00042739,31]
[312414738,1705863102962,-3629.07,0.00042739,31]
[312414739,1705863102972,-3411.41,0.00042739,31]
[312414740,1705863102981,-500.0,0.00042739,31]
[312414741,1705863102991,-500.0,0.00042739,31]
[312414742,1705863103001,-726.07,0.00042739,31]
[312414743,1705863103010,-5194.93,0.00042739,31]
[312414744,1705863103019,-1150.49,0.00042739,31]
[312414745,1705863103029,-3377.74,0.00042739,31]
[312414746,1705863103039,-1943.47,0.00042739,31]
[312414747,1705863103048,-1108.56,0.00042739,31]
[312414748,1705863103058,-500.0,0.00042739,31]
[312414749,1705863103067,-500.0,0.00042739,31]
[312414750,1705863103076,-620.5,0.00042739,31]
[312414751,1705863103086,-1379.23,0.00042739,31]
[312414752,1705863103096,-500.0,0.00042739,31]
[312414753,1705863103104,-965.9,0.00042739,31]
[312414754,1705863103114,-825.6,0.00042739,31]
[312414755,1705863103124,-3791.82,0.00042739,31]
[312414756,1705863103133,-1532.88,0.00042739,31]
[312414757,1705863103143,-1797.81,0.00042739,31]
[312414758,1705863103152,-5971.46,0.00042739,31]
[312414759,1705863103162,-500.0,0.00042739,31]
[312414760,1705863103172,-500.0,0.00042739,31]
[312414761,1705863103181,-500.0,0.00042739,31]
[312414762,1705863103190,-597.64,0.00042739,31]
[312414763,1705863103200,-500.0,0.00042739,31]
[312414764,1705863103209,-554.71,0.00042739,31]
[312414765,1705863103220,-389.48934112,0.00042739,31]
[312414766,1705863103230,-843.24,0.00042739,31]
[312414767,1705863103239,-505.05,0.00042739,31]
[312414768,1705863103249,-1011.31,0.00042739,31]
[312414769,1705863103259,-500.0,0.00042739,31]
[312414770,1705863103268,-500.0,0.00042739,31]
[312414771,1705863103278,-500.0,0.00042739,31]
[312414772,1705863103288,-500.0,0.00042739,60]
[312414773,1705863103298,-1242.18,0.00042739,31]
[312414774,1705863103307,-500.0,0.00042739,15]
[312414775,1705863103316,-31979.27,0.00042739,31]
[312414776,1705863103326,-1802.54,0.00042739,31]
[312414777,1705863103336,-500.0,0.00042739,31]
[312414778,1705863103345,-724.71,0.00042739,31]
[312414779,1705863103355,-1209.74,0.00042739,31]
[312414780,1705863103364,-500.0,0.00042739,31]
[312414781,1705863103373,-2046.63,0.00042739,31]
[312414782,1705863103383,-1903.42,0.00042739,31]
[312414783,1705863103393,-4903.09,0.00042739,31]
[312414784,1705863103403,-537.56728677,0.00042739,31]
[312414785,1705863103412,-500.0,0.00042739,31]
[312414786,1705863103422,-500.0,0.00042739,31]
[312414787,1705863103431,-1146.65,0.00042739,31]
[312414788,1705863103440,-2442.87,0.00042739,31]
[312414789,1705863103450,-500.0,0.00042739,31]
[312414790,1705863103460,-2526.05,0.00042739,31]
[312414791,1705863103470,-2162.48,0.00042739,31]
[312414792,1705863103480,-1626.96,0.00042739,31]
[312414793,1705863103490,-1000.0,0.00042739,2]
[312414794,1705863103499,-1812.71,0.00042739,31]
[312414795,1705863103509,-500.0,0.00042739,5]
[312414796,1705863103518,-500.0,0.00042739,31]
[312414797,1705863103527,-500.0,0.00042739,31]
[312414798,1705863103537,-509.47,0.00042739,31]
[312414799,1705863103546,-807.78,0.00042739,31]
[312414800,1705863103556,-638.08,0.00042739,31]
[312414801,1705863103565,-4768.84,0.00042739,31]
[312414802,1705863103574,-500.0,0.00042739,31]
[312414803,1705863103583,-500.0,0.00042739,31]
[312414804,1705863103592,-500.0,0.00042739,31]
[312414805,1705863103602,-23111.4,0.00042739,31]
[312414806,1705863103612,-641.88,0.00042739,31]
[312414807,1705863103622,-2345.39,0.00042739,31]
[312414808,1705863103631,-500.0,0.00042739,31]
[312414809,1705863103641,-1543.52,0.00042739,31]
[312414810,1705863103651,-500.0,0.00042739,31]
[312414811,1705863103661,-2539.24,0.00042739,31]
[312414812,1705863103673,-500.0,0.00042739,31]
[312414813,1705863103683,-4085.26,0.00042739,31]
[312414814,1705863103692,-500.0,0.00042739,31]
[312414815,1705863103703,-500.0,0.00042739,2]
[312414816,1705863103713,-500.0,0.00042739,31]
[312414817,1705863103722,-1053.53,0.00042739,31]
[312414818,1705863103731,-500.0,0.00042739,31]
[312414819,1705863103742,-1444.4,0.00042739,31]
[312414820,1705863103751,-1203.58,0.00042739,31]
[312414821,1705863103761,-8334.75,0.00042739,31]
[312414822,1705863103770,-1170.03,0.00042739,31]
[312414823,1705863103780,-3868.82,0.00042739,31]
[312414824,1705863103789,-1290.9,0.00042739,31]
[312414825,1705863103799,-2604.67,0.00042739,31]
[312414826,1705863103808,-751.65,0.00042739,31]
[312414827,1705863103818,-505.75554987,0.00042739,31]
[312414828,1705863103827,-3891.13,0.00042739,31]
[312414829,1705863103837,-500.0,0.00042739,31]
[312414830,1705863103846,-879.17,0.00042739,31]
[312414831,1705863103856,-500.0,0.00042739,31]
[312414832,1705863103865,-702.2,0.00042739,31]
[312414833,1705863103875,-1512.38,0.00042739,31]
[312414834,1705863103885,-500.0,0.00042739,31]
[312414835,1705863103895,-500.0,0.00042739,31]
[312414836,1705863103904,-500.0,0.00042739,31]
[312414837,1705863103914,-4210.98,0.00042739,31]
[312414838,1705863103923,-500.0,0.00042739,31]
[312414839,1705863103932,-1010.5,0.00042739,31]
[312414840,1705863103942,-500.0,0.00042739,31]
[312414841,1705863103951,-5113.55,0.00042739,31]
[312414842,1705863103961,-5553.41,0.00042739,31]
[312414843,1705863103971,-500.0,0.00042739,31]
[312414844,1705863103980,-2021.88,0.00042739,31]
[312414845,1705863103990,-831.35,0.00042739,31]
[312414846,1705863103999,-500.0,0.00042739,31]
[312414847,1705863104009,-500.0,0.00042739,31]
[312414848,1705863104019,-1451.78,0.00042739,31]
[312414849,1705863104028,-2047.15,0.00042739,31]
[312414850,1705863104038,-500.0,0.00042739,31]
[312414851,1705863104048,-500.0,0.00042739,31]
[312414852,1705863104058,-500.0,0.00042739,31]
[312414853,1705863104067,-1645.64,0.00042739,31]
[312414854,1705863104078,-928.47,0.00042739,31]
[312414855,1705863104087,-1009.2,0.00042739,31]
[312414856,1705863104096,-1721.6,0.00042739,31]
[312414857,1705863104105,-507.02,0.00042739,31]
[312414858,1705863104115,-500.0,0.00042739,31]
[312414859,1705863104124,-833.04,0.00042739,31]
[312414860,1705863104133,-500.0,0.00042739,31]
[312414861,1705863104143,-853.75,0.00042739,31]
[312414862,1705863104152,-3752.11,0.00042739,31]
[312414863,1705863104161,-1139.83,0.00042739,31]
[312414864,1705863104171,-2604.2,0.00042739,31]
[312414865,1705863104181,-1000.0,0.00042739,30]
[312414866,1705863104191,-3344.19,0.00042739,31]
[312414867,1705863104201,-500.0,0.00042739,31]
[312414868,1705863104211,-656.95,0.00042739,31]
[312414869,1705863104221,-500.0,0.00042739,31]
[312414870,1705863104230,-1369.33,0.00042739,31]
[312414871,1705863104240,-500.0,0.00042739,31]
[312414872,1705863104249,-500.0,0.00042739,31]
[312414873,1705863104259,-2125.69,0.00042739,31]
[312414874,1705863104269,-2177.35,0.00042739,31]
[312414875,1705863104279,-523.94,0.00042739,31]
[312414876,1705863104289,-500.0,0.00042739,31]
[312414877,1705863104300,-1442.9,0.00042739,31]
[312414878,1705863104309,-500.0,0.00042739,31]
[312414879,1705863104319,-1712.99,0.00042739,31]
[312414880,1705863104329,-500.0,0.00042739,31]
[312414881,1705863104339,-1404.4,0.00042739,31]
[312414882,1705863104348,-500.0,0.00042739,31]
[312414883,1705863104358,-500.0,0.00042739,31]
[312414884,1705863104367,-500.0,0.00042739,31]
[312414885,1705863104377,-1360.45,0.00042739,31]
[312414886,1705863104387,-504.9,0.00042739,31]
[312414887,1705863104396,-989.76,0.00042739,31]
[312414888,1705863104406,-500.0,0.00042739,31]
[312414889,1705863104416,-549.67052801,0.00042739,31]
[312414890,1705863104426,-500.0,0.00042739,31]
[312414891,1705863104436,-2806.49,0.00042739,31]
[312414892,1705863104446,-1242.78,0.00042739,31]
[312414893,1705863104456,-10132.2,0.00042739,31]
[312414894,1705863104466,-500.0,0.00042739,31]
[312414895,1705863104475,-627.09,0.00042739,31]
[312414896,1705863104485,-2496.9,0.00042739,31]
[312414897,1705863104495,-500.0,0.00042739,31]
[312414898,1705863104506,-3890.38,0.00042739,31]
[312414899,1705863104515,-1097.31,0.00042739,31]
[312414900,1705863104525,-500.0,0.00042739,31]
[312414901,1705863104535,-4035.88,0.00042739,31]
[312414902,1705863104544,-1353.68,0.00042739,31]
[312414903,1705863104553,-10189.15,0.00042739,31]
[312414904,1705863104563,-500.0,0.00042739,31]
[312414905,1705863104573,-775.43,0.00042739,31]
[312414906,1705863104583,-4930.09,0.00042739,31]
[312414907,1705863104592,-500.0,0.00042739,2]
[312414908,1705863104602,-500.0,0.00042739,31]
[312414909,1705863104612,-500.0,0.00042739,10]
[312414910,1705863104622,-500.0,0.00042739,31]
[312414911,1705863104631,-500.0,0.00042739,31]
[312414912,1705863104641,-500.0,0.00042739,31]
[312414913,1705863104651,-500.0,0.00042739,31]
[312414914,1705863104661,-4049.62,0.00042739,31]
[312414915,1705863104674,-678.75,0.00042739,31]
[312414916,1705863104683,-500.0,0.00042739,31]
[312414917,1705863104693,-1229.34,0.00042739,31]
[312414918,1705863104703,-3443.53,0.00042739,31]
[312414919,1705863104713,-500.0,0.00042739,31]
[312414920,1705863104723,-152.0,0.00042754,4]
[312414921,1705863104732,-1282.0,0.00042777,30]
[312414922,1705863104744,-313.0,0.00042777,30]
[312414923,1705863104754,-364.73162279,0.00042796,14]
[312414924,1705863104764,-181.63371409,0.00042796,14]
[312414925,1705863104774,-248.61643646,0.00042796,14]
[312414926,1705863104784,-276.18212841,0.00042796,14]
[312414927,1705863104794,-218.49632604,0.00042796,14]
[312414928,1705863104803,-451.07,0.0004286,2]
[312414929,1705863104813,-153.06381515,0.00042862,30]
[312414930,1705863104823,-941.43,0.00042902,2]
[312414931,1705863104834,-953.43125265,0.00042909,30]
[312414932,1705863104844,-355.40143417,0.00042961,30]
[312414933,1705863104855,-287.79,0.00042964,2]
[312414934,1705863104864,-168.04,0.00042964,2]
[312414935,1705863104873,-200.0,0.00042987,56]
[312414936,1705863104884,-200.0,0.00042987,34]
[312414937,1705863104894,-158.35520817,0.00042988,30]
[312414938,1705863104903,-150.0,0.00043,18]
[312414939,1705863104913,-953.43125265,0.00043047,30]